{"text_format":"1","workbook":"xlsx","n_sheets":5,"sheets":["حساب قيمة العملية","المستلزمات","فتح الغرفة","الاقامة ","جهاز الاشعة"],"not_rendered":{"charts":0,"images":0,"macros":1,"external_links":0,"defined_names":5,"comments":0,"pivot_tables":0},"unopened":[],"bounds":{"document_bytes":16777216,"sheet_cells":100000,"rows_first":2000,"rows_last":500,"rows_between":2000,"halvings":0,"cell_chars":16384,"cell_head_chars":4096},"cells_cut":0,"cells_raw":0,"read":"whole","date_system":"1900"}

{"sheet":"حساب قيمة العملية","index":0,"n_rows":26,"n_cols":4,"rows_kept":26,"cut":false,"hidden":false,"merged":[[25,0,25,1],[1,0,1,1],[20,0,20,1],[21,0,21,1],[22,0,22,1],[23,0,23,1]]}
["البيان","العدد","القيمة","مدة الإقامة"]
["قيمة المستلزمات ",null,{"$f":"SUM(C3:C18)","v":131}]
["قفازات جراحية",2,{"$f":"IFERROR(VLOOKUP(A3,المستلزمات!$Z$2:$AA$250,2,0)*B3,\"\")","v":10}]
["كاب وماسك",3,{"$f":"IFERROR(VLOOKUP(A4,المستلزمات!$Z$2:$AA$250,2,0)*B4,\"\")","v":9}]
["جلايسين",2,{"$f":"IFERROR(VLOOKUP(A5,المستلزمات!$Z$2:$AA$250,2,0)*B5,\"\")","v":78}]
["ماكنتوش",3,{"$f":"IFERROR(VLOOKUP(A6,المستلزمات!$Z$2:$AA$250,2,0)*B6,\"\")","v":12}]
["بيتادين 100 سم",2,{"$f":"IFERROR(VLOOKUP(A7,المستلزمات!$Z$2:$AA$250,2,0)*B7,\"\")","v":18}]
["سيدكس 1000 سم",1,{"$f":"IFERROR(VLOOKUP(A8,المستلزمات!$Z$2:$AA$250,2,0)*B8,\"\")","v":4}]
[null,null,{"$f":"IFERROR(VLOOKUP(A9,المستلزمات!$Z$2:$AA$250,2,0)*B9,\"\")","v":""}]
[null,null,{"$f":"IFERROR(VLOOKUP(A10,المستلزمات!$Z$2:$AA$250,2,0)*B10,\"\")","v":""}]
[null,null,{"$f":"IFERROR(VLOOKUP(A11,المستلزمات!$Z$2:$AA$250,2,0)*B11,\"\")","v":""}]
[null,null,{"$f":"IFERROR(VLOOKUP(A12,المستلزمات!$Z$2:$AA$250,2,0)*B12,\"\")","v":""}]
[null,null,{"$f":"IFERROR(VLOOKUP(A13,المستلزمات!$Z$2:$AA$250,2,0)*B13,\"\")","v":""}]
[null,null,{"$f":"IFERROR(VLOOKUP(A14,المستلزمات!$Z$2:$AA$250,2,0)*B14,\"\")","v":""}]
[null,null,{"$f":"IFERROR(VLOOKUP(A15,المستلزمات!$Z$2:$AA$250,2,0)*B15,\"\")","v":""}]
[null,null,{"$f":"IFERROR(VLOOKUP(A16,المستلزمات!$Z$2:$AA$250,2,0)*B16,\"\")","v":""}]
[null,null,{"$f":"IFERROR(VLOOKUP(A17,المستلزمات!$Z$2:$AA$250,2,0)*B17,\"\")","v":""}]
[null,null,{"$f":"IFERROR(VLOOKUP(A18,المستلزمات!$Z$2:$AA$250,2,0)*B18,\"\")","v":""}]
["فتح غرفة العمليات","عملية صغرى",{"$f":"IFERROR(VLOOKUP(B19,'فتح الغرفة'!$A$5:$B$100,2,0),\"\")","v":200}]
["الاقامة ",407,{"$f":"IFERROR(VLOOKUP(B20,'الاقامة '!$B$6:$C$240,2,0),\"\")*D20","v":360},3]
["الإجمالى",null,{"$f":"SUM(C19:C20)+C2","v":691}]
["14% ضريبة",null,{"$f":"C21*14%","v":96.740000000000009}]
["الاجمالى بعد الضريبة",null,{"$f":"C21+C22","v":787.74}]
["الدمغة",null,{"$f":"IF($C$23<=1000,10,IF(AND($C$23>1000,$C$23<=1500),15,IF(AND($C$23>1500,$C$23<=2000),20,IF(AND($C$23>2000,$C$23<=2500),25,IF(AND($C$23>2500,$C$23<=3000),30,IF(AND($C$23>3000,$C$23<=3500),35,IF(AND($C$23>3500,$C$23<=4000),40,IF(AND($C$23>4000,$C$23<=4500),45,IF(AND($C$23>4500,$C$23<=5000),50,IF(AND($C$23>5000,$C$23<=5500),55,60))))))))))","v":10}]
["جهاز الاشعة ",{"$f":"$B$19","v":"عملية صغرى"},{"$f":"IFERROR(VLOOKUP(B25,'جهاز الاشعة'!$A$7:$B$110,2,0),\"\")","v":190}]
["الاجمالى الكلي ",null,{"$f":"SUM(C23:C25)","v":987.74}]

{"sheet":"المستلزمات","index":1,"n_rows":102,"n_cols":27,"rows_kept":102,"cut":false,"hidden":false,"merged":[[37,0,37,2],[37,16,37,17]]}
[]
[null,null,null,null,null,null,null,null,null,null,null,null,null,null,null,null,null,null,null,null,null,null,null,null,null,"كاب وماسك",3]
[null,null,null,null,null,null,null,null,null,null,null,null,null,null,null,null,null,null,null,null,null,null,null,null,null,"قفازات جراحية",5]
[null,null,null,null,null,null,null,null,null,null,null,null,null,null,null,null,null,null,null,null,null,null,null,null,null,"ماكنتوش",4]
["الصنف","عدد","السعر","القيمة","الصنف","عدد","السعر","القيمة","الصنف","عدد","السعر","القيمة","الصنف","عدد","السعر","القيمة",null,null,null,null,null,null,null,null,null,"بيتادين 100 سم",9]
["كاب وماسك",null,3,{"$f":"B6*C6","v":0},"حقنة بلاستيك 3سم",null,1,{"$f":"F6*G6","v":0},"انترفال ",null,115,{"$f":"J6*K6","v":0},"محلول ملح",null,12,{"$f":"N6*O6","v":0},null,null,null,null,null,null,null,null,null,"كحول 100سم",3]
["قفازات جراحية",null,5,{"$f":"B7*C7","v":0},"حقنة بلاستيك 5سم",null,1,{"$f":"F7*G7","v":0},"ديبريفان",null,60,{"$f":"J7*K7","v":0},"رينجر",8,13,{"$f":"N7*O7","v":104},null,null,null,null,null,null,null,null,null,"سيدكس 1000 سم",4]
["ماكنتوش",null,4,0,"حقنة بلاستيك 10سم",null,1,0,"س.كولين",null,5,0,"بافيلون",null,10,0,null,null,null,null,null,null,null,null,null,"جلايسين",39]
["بيتادين 100 سم",null,9,0,"حقنة بلاستيك 20سم",null,2,0,"بروستجمين سم",null,13,0,"تراكريام 25",null,20,0,null,null,null,null,null,null,null,null,null,"محلول ملح",12]
["كحول 100سم",null,3,0,"حقنة بلاستيك 50سم",null,3,0,"بروستجمين امبول",null,10,0,"سيفوبيد",null,51,0,null,null,null,null,null,null,null,null,null,"ماء مقطر",28]
["سيدكس 1000 سم",null,4,0,"قسطرة نيلاتون ",null,2,0,"أتروبين",null,5,0,"جراميسين",null,6,0,null,null,null,null,null,null,null,null,null,"ماء اكسجين",4]
["جلايسين",null,39,0,"قسطرة فولى ",null,12,0,"ماركين فيال سم",null,1,0,"كانولا",10,4,40,null,null,null,null,null,null,null,null,null,"ك يوجيل",7]
["محلول ملح",null,12,0,"قسطرة سيليكون",null,88,0,"ماركين أمبول         ",null,11,0,"جهاز وريد",null,4,0,null,null,null,null,null,null,null,null,null,"شاش 5*5",3]
["ماء مقطر",null,28,0,"قسطرة حالب ",null,15,0,"زيلوكين",null,1,0,"انبوبة تخدير",null,14,0,null,null,null,null,null,null,null,null,null,"شاش 10 * 10 ",4]
["ماء اكسجين",null,4,0,"انبوبة حرف T",null,6,0,"هالوثان",null,3.25,0,"ممر هوائي",null,6,0,null,null,null,null,null,null,null,null,null,"فوطة بطن 30 * 30 ",6]
["ك يوجيل",null,7,0,"كيس بول",null,4,0,"ايزوفلورين",null,2,0,"ابرة بنج نصفى ",null,40,0,null,null,null,null,null,null,null,null,null,"غيار دريسينج 1*1",1]
["شاش 5*5",null,3,0,"دياثرمي",null,18,0,"غاز اكسجين",null,7,0,"ترايديل سم",null,2,0,null,null,null,null,null,null,null,null,null,"غيار دريسينج 1*2",2]
["شاش 10 * 10 ",null,4,0,"يد دياثرمي",null,18,0,"دورميكام",null,18,0,"سيفوبيد",null,51,0,null,null,null,null,null,null,null,null,null,"غيار دريسينج 18*35",5]
["فوطة بطن 30 * 30 ",null,6,0,"فاكريل ",null,25,0,"فنتاتيل",null,7,0,"سولباسيف",null,53,0,null,null,null,null,null,null,null,null,null,"رباط شاش صغير",5]
["غيار دريسينج 1*1",null,1,0,"برولين ",null,14,0,"بثدين",null,2,0,null,null,null,0,null,null,null,null,null,null,null,null,null,"رباط شاش كبير",5]
["غيار دريسينج 1*2",null,2,0,"كرومك",null,14,0,"مورفين ",null,1,0,null,null,null,0,null,null,null,null,null,null,null,null,null,"رباط ضاغط كبير 15سم",10]
["غيار دريسينج 18*35",null,5,0,"خيط حرير",null,12,0,"بريمبران",null,3,0,null,null,null,0,null,null,null,null,null,null,null,null,null,"فارما بور 10*10",2]
["رباط شاش صغير",null,5,0,"شاش 10*10 معقم",null,4,0,"سولوكورتيف",null,55,0,null,null,null,0,null,null,null,null,null,null,null,null,null,"فارما بور 10*15",3]
["رباط شاش كبير",null,5,0,"مفرش سرير",null,6,0,"ديكادرون ",null,15,0,null,null,null,0,null,null,null,null,null,null,null,null,null,"فارما بور 10*20",4]
["رباط ضاغط كبير 15سم",null,10,0,"ريدى فاك ( درنقة )",null,42,0,"ادرينالين",null,6,0,null,null,null,0,null,null,null,null,null,null,null,null,null,"فارما بور 10*25",4]
["فارما بور 10*10",null,2,0,"رايل ",null,4,0,"لازكس 20 جم",null,6,0,null,null,null,0,null,null,null,null,null,null,null,null,null,"فارما بور 10*30",5]
["فارما بور 10*15",null,3,0,"جوانتى فايروس",null,16,0,"سنتوسينون 10 وحدة",null,7,0,null,null,null,0,null,null,null,null,null,null,null,null,null,"فارما بور 10*35",5]
["فارما بور 10*20",null,4,0,"شاش فازلين ( استرباد)",null,4,0,"مترجين",null,2,0,null,null,null,0,null,null,null,null,null,null,null,null,null,"بلاستر حرير بالمتر",6]
["فارما بور 10*25",null,4,0,"وير عظام",null,25,0,"كيناكورت",null,10,0,null,null,null,0,null,null,null,null,null,null,null,null,null,"قطن 250 جم",20]
["فارما بور 10*30",null,5,0,"دباسة ",null,115,0,"امينوفللين",null,6,0,null,null,null,0,null,null,null,null,null,null,null,null,null,"مشرط",2]
["فارما بور 10*35",null,5,0,"صوف بان ( سبان )",null,8,0,"كالسيوم",null,6,0,null,null,null,0,null,null,null,null,null,null,null,null,null,"بكرة حرير كاملة ",31]
["بلاستر حرير بالمتر",null,6,0,"وصلة ثلاثية",null,5,0,"فولتارين",null,8,0,null,null,null,0,null,null,null,null,null,null,null,null,null,"حقنة بلاستيك 3سم",1]
["قطن 250 جم",null,20,0,null,null,null,0,"افدرين",null,5,0,null,null,null,0,null,null,null,null,null,null,null,null,null,"حقنة بلاستيك 5سم",1]
["مشرط",null,2,0,null,null,null,0,"فنتالين",null,7,0,null,null,null,0,null,null,null,null,null,null,null,null,null,"حقنة بلاستيك 10سم",1]
["بكرة حرير كاملة ",null,31,0,null,null,null,0,"نالوفين",null,7,0,null,null,null,0,null,null,null,null,null,null,null,null,null,"حقنة بلاستيك 20سم",2]
[null,null,null,0,null,null,null,0,"فورتاكورتين",null,5,0,null,null,null,0,null,null,null,null,null,null,null,null,null,"حقنة بلاستيك 50سم",3]
[null,null,null,null,null,null,null,null,null,null,null,null,null,null,null,null,null,null,null,null,null,null,null,null,null,"قسطرة نيلاتون ",2]
["الإجمالى",null,null,{"$f":"SUM($D$6:$D$36)","v":0},null,null,null,{"$f":"SUM($H$6:$H$36)","v":0},null,null,null,{"$f":"SUM($L$6:$L$36)","v":0},null,null,null,{"$f":"SUM($P$6:$P$36)","v":144},{"$f":"D38+H38+L38+P38","v":144},null,null,null,null,null,null,null,null,"قسطرة فولى ",12]
[null,null,null,null,null,null,null,null,null,null,null,null,null,null,null,null,null,null,null,null,null,null,null,null,null,"قسطرة سيليكون",88]
[null,null,null,null,null,null,null,null,null,null,null,null,null,null,null,null,null,null,null,null,null,null,null,null,null,"قسطرة حالب ",15]
[null,null,null,null,null,null,null,null,null,null,null,null,null,null,null,null,null,null,null,null,null,null,null,null,null,"انبوبة حرف T",6]
[null,null,null,null,null,null,null,null,null,null,null,null,null,null,null,null,null,null,null,null,null,null,null,null,null,"كيس بول",4]
[null,null,null,null,null,null,null,null,null,null,null,null,null,null,null,null,null,null,null,null,null,null,null,null,null,"دياثرمي",18]
[null,null,null,null,null,null,null,null,null,null,null,null,null,null,null,null,null,null,null,null,null,null,null,null,null,"يد دياثرمي",18]
[null,null,null,null,null,null,null,null,null,null,null,null,null,null,null,null,null,null,null,null,null,null,null,null,null,"فاكريل ",25]
[null,null,null,null,null,null,null,null,null,null,null,null,null,null,null,null,null,null,null,null,null,null,null,null,null,"برولين ",14]
[null,null,null,null,null,null,null,null,null,null,null,null,null,null,null,null,null,null,null,null,null,null,null,null,null,"كرومك",14]
[null,null,null,null,null,null,null,null,null,null,null,null,null,null,null,null,null,null,null,null,null,null,null,null,null,"خيط حرير",12]
[null,null,null,null,null,null,null,null,null,null,null,null,null,null,null,null,null,null,null,null,null,null,null,null,null,"شاش 10*10 معقم",4]
[null,null,null,null,null,null,null,null,null,null,null,null,null,null,null,null,null,null,null,null,null,null,null,null,null,"مفرش سرير",6]
[null,null,null,null,null,null,null,null,null,null,null,null,null,null,null,null,null,null,null,null,null,null,null,null,null,"ريدى فاك ( درنقة )",42]
[null,null,null,null,null,null,null,null,null,null,null,null,null,null,null,null,null,null,null,null,null,null,null,null,null,"رايل ",4]
[null,null,null,null,null,null,null,null,null,null,null,null,null,null,null,null,null,null,null,null,null,null,null,null,null,"جوانتى فايروس",16]
[null,null,null,null,null,null,null,null,null,null,null,null,null,null,null,null,null,null,null,null,null,null,null,null,null,"شاش فازلين ( استرباد)",4]
[null,null,null,null,null,null,null,null,null,null,null,null,null,null,null,null,null,null,null,null,null,null,null,null,null,"وير عظام",25]
[null,null,null,null,null,null,null,null,null,null,null,null,null,null,null,null,null,null,null,null,null,null,null,null,null,"دباسة ",115]
[null,null,null,null,null,null,null,null,null,null,null,null,null,null,null,null,null,null,null,null,null,null,null,null,null,"صوف بان ( سبان )",8]
[null,null,null,null,null,null,null,null,null,null,null,null,null,null,null,null,null,null,null,null,null,null,null,null,null,"وصلة ثلاثية",5]
[null,null,null,null,null,null,null,null,null,null,null,null,null,null,null,null,null,null,null,null,null,null,null,null,null,"انترفال ",115]
[null,null,null,null,null,null,null,null,null,null,null,null,null,null,null,null,null,null,null,null,null,null,null,null,null,"ديبريفان",60]
[null,null,null,null,null,null,null,null,null,null,null,null,null,null,null,null,null,null,null,null,null,null,null,null,null,"س.كولين",5]
[null,null,null,null,null,null,null,null,null,null,null,null,null,null,null,null,null,null,null,null,null,null,null,null,null,"بروستجمين سم",13]
[null,null,null,null,null,null,null,null,null,null,null,null,null,null,null,null,null,null,null,null,null,null,null,null,null,"بروستجمين امبول",10]
[null,null,null,null,null,null,null,null,null,null,null,null,null,null,null,null,null,null,null,null,null,null,null,null,null,"أتروبين",5]
[null,null,null,null,null,null,null,null,null,null,null,null,null,null,null,null,null,null,null,null,null,null,null,null,null,"ماركين فيال سم",1]
[null,null,null,null,null,null,null,null,null,null,null,null,null,null,null,null,null,null,null,null,null,null,null,null,null,"ماركين أمبول         ",11]
[null,null,null,null,null,null,null,null,null,null,null,null,null,null,null,null,null,null,null,null,null,null,null,null,null,"زيلوكين",1]
[null,null,null,null,null,null,null,null,null,null,null,null,null,null,null,null,null,null,null,null,null,null,null,null,null,"هالوثان",3.25]
[null,null,null,null,null,null,null,null,null,null,null,null,null,null,null,null,null,null,null,null,null,null,null,null,null,"ايزوفلورين",2]
[null,null,null,null,null,null,null,null,null,null,null,null,null,null,null,null,null,null,null,null,null,null,null,null,null,"غاز اكسجين",7]
[null,null,null,null,null,null,null,null,null,null,null,null,null,null,null,null,null,null,null,null,null,null,null,null,null,"دورميكام",18]
[null,null,null,null,null,null,null,null,null,null,null,null,null,null,null,null,null,null,null,null,null,null,null,null,null,"فنتاتيل",7]
[null,null,null,null,null,null,null,null,null,null,null,null,null,null,null,null,null,null,null,null,null,null,null,null,null,"بثدين",2]
[null,null,null,null,null,null,null,null,null,null,null,null,null,null,null,null,null,null,null,null,null,null,null,null,null,"مورفين ",1]
[null,null,null,null,null,null,null,null,null,null,null,null,null,null,null,null,null,null,null,null,null,null,null,null,null,"بريمبران",3]
[null,null,null,null,null,null,null,null,null,null,null,null,null,null,null,null,null,null,null,null,null,null,null,null,null,"سولوكورتيف",55]
[null,null,null,null,null,null,null,null,null,null,null,null,null,null,null,null,null,null,null,null,null,null,null,null,null,"ديكادرون ",15]
[null,null,null,null,null,null,null,null,null,null,null,null,null,null,null,null,null,null,null,null,null,null,null,null,null,"ادرينالين",6]
[null,null,null,null,null,null,null,null,null,null,null,null,null,null,null,null,null,null,null,null,null,null,null,null,null,"لازكس 20 جم",6]
[null,null,null,null,null,null,null,null,null,null,null,null,null,null,null,null,null,null,null,null,null,null,null,null,null,"سنتوسينون 10 وحدة",7]
[null,null,null,null,null,null,null,null,null,null,null,null,null,null,null,null,null,null,null,null,null,null,null,null,null,"مترجين",2]
[null,null,null,null,null,null,null,null,null,null,null,null,null,null,null,null,null,null,null,null,null,null,null,null,null,"كيناكورت",10]
[null,null,null,null,null,null,null,null,null,null,null,null,null,null,null,null,null,null,null,null,null,null,null,null,null,"امينوفللين",6]
[null,null,null,null,null,null,null,null,null,null,null,null,null,null,null,null,null,null,null,null,null,null,null,null,null,"كالسيوم",6]
[null,null,null,null,null,null,null,null,null,null,null,null,null,null,null,null,null,null,null,null,null,null,null,null,null,"فولتارين",8]
[null,null,null,null,null,null,null,null,null,null,null,null,null,null,null,null,null,null,null,null,null,null,null,null,null,"افدرين",5]
[null,null,null,null,null,null,null,null,null,null,null,null,null,null,null,null,null,null,null,null,null,null,null,null,null,"فنتالين",7]
[null,null,null,null,null,null,null,null,null,null,null,null,null,null,null,null,null,null,null,null,null,null,null,null,null,"نالوفين",7]
[null,null,null,null,null,null,null,null,null,null,null,null,null,null,null,null,null,null,null,null,null,null,null,null,null,"فورتاكورتين",5]
[null,null,null,null,null,null,null,null,null,null,null,null,null,null,null,null,null,null,null,null,null,null,null,null,null,"محلول ملح",12]
[null,null,null,null,null,null,null,null,null,null,null,null,null,null,null,null,null,null,null,null,null,null,null,null,null,"رينجر",13]
[null,null,null,null,null,null,null,null,null,null,null,null,null,null,null,null,null,null,null,null,null,null,null,null,null,"بافيلون",10]
[null,null,null,null,null,null,null,null,null,null,null,null,null,null,null,null,null,null,null,null,null,null,null,null,null,"تراكريام 25",20]
[null,null,null,null,null,null,null,null,null,null,null,null,null,null,null,null,null,null,null,null,null,null,null,null,null,"سيفوبيد",51]
[null,null,null,null,null,null,null,null,null,null,null,null,null,null,null,null,null,null,null,null,null,null,null,null,null,"جراميسين",6]
[null,null,null,null,null,null,null,null,null,null,null,null,null,null,null,null,null,null,null,null,null,null,null,null,null,"كانولا",4]
[null,null,null,null,null,null,null,null,null,null,null,null,null,null,null,null,null,null,null,null,null,null,null,null,null,"جهاز وريد",4]
[null,null,null,null,null,null,null,null,null,null,null,null,null,null,null,null,null,null,null,null,null,null,null,null,null,"انبوبة تخدير",14]
[null,null,null,null,null,null,null,null,null,null,null,null,null,null,null,null,null,null,null,null,null,null,null,null,null,"ممر هوائي",6]
[null,null,null,null,null,null,null,null,null,null,null,null,null,null,null,null,null,null,null,null,null,null,null,null,null,"ابرة بنج نصفى ",40]
[null,null,null,null,null,null,null,null,null,null,null,null,null,null,null,null,null,null,null,null,null,null,null,null,null,"ترايديل سم",2]
[null,null,null,null,null,null,null,null,null,null,null,null,null,null,null,null,null,null,null,null,null,null,null,null,null,"سولباسيف",53]

{"sheet":"فتح الغرفة","index":2,"n_rows":10,"n_cols":2,"rows_kept":10,"cut":false,"hidden":false,"merged":[]}
[]
["تصنيف العمليات ","فتح الغرفة العمليات"]
[]
[]
["عملية كشك ",130]
["عملية صغرى",200]
["عملية متوسطة",275]
["عملية كبرى",375]
["عملية ذات مهارة",440]
["عملية ذات طابغ خاص",715]

{"sheet":"الاقامة ","index":3,"n_rows":23,"n_cols":3,"rows_kept":23,"cut":false,"hidden":false,"merged":[]}
[]
[]
[]
[]
[null,"رقم الغرفة ","سعر الاقامة "]
[null,401,120]
[null,402,120]
[null,403,300]
[null,404,300]
[null,405,150]
[null,406,120]
[null,407,120]
[null,408,120]
[null,409,120]
[null,501,120]
[null,502,120]
[null,503,300]
[null,504,300]
[null,505,150]
[null,506,120]
[null,507,120]
[null,508,120]
[null,509,120]

{"sheet":"جهاز الاشعة","index":4,"n_rows":11,"n_cols":2,"rows_kept":11,"cut":false,"hidden":false,"merged":[]}
[]
[]
[]
[]
[]
[]
["عملية صغرى",190]
["عملية متوسطة",190]
["عملية كبرى",290]
["عملية ذات مهارة",350]
["عملية ذات طابع خاص",540]